[Event "Tournoi de MI Clichy 92 2022"]
[Site "Clichy, France"]
[Date "2022.02.20"]
[Round "1.4"]
[White "Sorbe, Stephane"]
[Black "Degardin, Sylvain"]
[Result "1-0"]
[TimeControl "1H40 40 moves plus 30 minutes + 30 seconds from move one"]
[WhiteElo "2326"]
[BlackElo "2288"]

1. d4 {[%clk 01:30:52]} {[%emt 00:00:06]} d5 {[%clk 01:29:59]} {[%emt
00:01:01]} 2. Nf3 {[%clk 01:31:13]} {[%emt 00:00:10]} Nf6 {[%clk 01:29:47]}
{[%emt 00:00:41]} 3. c3 {[%clk 01:31:27]} {[%emt 00:00:17]} e6 {[%clk
01:29:07]} {[%emt 00:01:10]} 4. Bg5 {[%clk 01:31:39]} {[%emt 00:00:19]} Nbd7
{[%clk 01:26:25]} {[%emt 00:03:12]} 5. Nbd2 {[%clk 01:31:47]} {[%emt 00:00:23]}
Be7 {[%clk 01:24:03]} {[%emt 00:02:51]} 6. e3 {[%clk 01:31:52]} {[%emt
00:00:25]} b6 {[%clk 01:23:18]} {[%emt 00:01:15]} 7. Bd3 {[%clk 01:31:32]}
{[%emt 00:00:51]} Bb7 {[%clk 01:23:03]} {[%emt 00:00:44]} 8. O-O {[%clk
01:27:16]} {[%emt 00:04:46]} O-O {[%clk 01:19:37]} {[%emt 00:03:56]} 9. Ne5
{[%clk 01:14:26]} {[%emt 00:13:20]} Nxe5 {[%clk 01:13:34]} {[%emt 00:06:32]} 10.
dxe5 {[%clk 01:14:42]} {[%emt 00:00:14]} Nd7 {[%clk 01:07:11]} {[%emt
00:06:54]} 11. Bxe7 {[%clk 01:07:32]} {[%emt 00:07:40]} Qxe7 {[%clk 01:07:05]}
{[%emt 00:00:35]} 12. f4 {[%clk 01:07:10]} {[%emt 00:00:52]} f6 {[%clk
00:58:13]} {[%emt 00:09:21]} 13. Qh5 {[%clk 00:58:17]} {[%emt 00:09:24]} g6
{[%clk 00:53:54]} {[%emt 00:04:47]} 14. Qh4 {[%clk 00:58:07]} {[%emt 00:00:41]}
Rae8 {[%clk 00:46:08]} {[%emt 00:08:16]} 15. Qg3 {[%clk 00:56:50]} {[%emt
00:01:48]} fxe5 {[%clk 00:42:19]} {[%emt 00:04:18]} 16. fxe5 {[%clk 00:56:55]}
{[%emt 00:00:25]} Qg7 {[%clk 00:40:30]} {[%emt 00:02:19]} 17. Rxf8+ {[%clk
00:54:35]} {[%emt 00:02:51]} Rxf8 {[%clk 00:39:04]} {[%emt 00:01:56]} 18. Nf3
{[%clk 00:54:56]} {[%emt 00:00:10]} c5 {[%clk 00:33:37]} {[%emt 00:05:56]} 19.
Rd1 {[%clk 00:48:31]} {[%emt 00:06:55]} Bc6 {[%clk 00:26:36]} {[%emt 00:07:31]}
20. b4 {[%clk 00:34:17]} {[%emt 00:14:45]} a5 {[%clk 00:20:13]} {[%emt
00:06:52]} 21. bxa5 {[%clk 00:32:17]} {[%emt 00:02:31]} b5 {[%clk 00:15:58]}
{[%emt 00:04:45]} 22. Rb1 {[%clk 00:27:37]} {[%emt 00:05:10]} c4 {[%clk
00:14:38]} {[%emt 00:01:50]} 23. Bc2 {[%clk 00:23:32]} {[%emt 00:04:35]} Ra8
{[%clk 00:10:05]} {[%emt 00:05:02]} 24. Rf1 {[%clk 00:15:06]} {[%emt 00:08:56]}
Nc5 {[%clk 00:08:45]} {[%emt 00:01:50]} 25. Nd4 {[%clk 00:13:29]} {[%emt
00:02:07]} Bd7 {[%clk 00:08:31]} {[%emt 00:00:43]} 26. Qg5 {[%clk 00:13:18]}
{[%emt 00:00:41]} h6 {[%clk 00:04:13]} {[%emt 00:04:48]} 27. Qg3 {[%clk
00:10:12]} {[%emt 00:03:36]} Nd3 {[%clk 00:02:15]} {[%emt 00:02:28]} 28. Rf6
{[%clk 00:09:52]} {[%emt 00:00:51]} Kh7 {[%clk 00:02:01]} {[%emt 00:00:45]} 29.
Bxd3 {[%clk 00:05:57]} {[%emt 00:04:25]} cxd3 {[%clk 00:02:23]} {[%emt
00:00:07]} 30. Qf2 {[%clk 00:06:20]} {[%emt 00:00:07]} Kg8 {[%clk 00:02:05]}
{[%emt 00:00:48]} 31. Qd2 {[%clk 00:04:34]} {[%emt 00:02:17]} Rxa5 {[%clk
00:01:59]} {[%emt 00:00:36]} 32. Qxd3 {[%clk 00:04:57]} {[%emt 00:00:07]} Kh7
{[%clk 00:02:17]} {[%emt 00:00:13]} 33. Qc2 {[%clk 00:03:24]} {[%emt 00:02:03]}
Ra6 {[%clk 00:01:00]} {[%emt 00:01:47]} 34. h4 {[%clk 00:03:36]} {[%emt
00:00:18]} h5 {[%clk 00:00:48]} {[%emt 00:00:42]} 35. Nf3 {[%clk 00:03:31]}
{[%emt 00:00:35]} Be8 {[%clk 00:00:43]} {[%emt 00:00:36]} 36. Ng5+ {[%clk
00:03:40]} {[%emt 00:00:21]} Kh6 {[%clk 00:00:47]} {[%emt 00:00:25]} 37. Qf2
{[%clk 00:01:28]} {[%emt 00:02:43]} Ra8 {[%clk 00:00:32]} {[%emt 00:00:46]} 38.
Qf4 {[%clk 00:01:29]} {[%emt 00:00:29]} Ra4 {[%clk 00:00:46]} {[%emt 00:00:15]}
39. e4 {[%clk 00:01:36]} {[%emt 00:00:23]} Qa7+ {[%clk 00:00:58]} {[%emt
00:00:19]} 40. Kh2 {[%clk 00:01:53]} {[%emt 00:00:14]} Kg7 {[%clk 00:00:35]}
{[%emt 00:00:53]} 41. Rxe6 {[%clk 00:24:24]} {[%emt 00:07:58]} 1-0

[Event "Tournoi de MI Clichy 92 2022"]
[Site "Clichy, France"]
[Date "2022.02.20"]
[Round "1.3"]
[White "Onkoud, Abdelaziz"]
[Black "Soham Das"]
[Result "1-0"]
[TimeControl "1H40 40 moves plus 30 minutes + 30 seconds from move one"]
[WhiteElo "2317"]
[BlackElo "2378"]

1. Nf3 {[%clk 01:30:34]} {[%emt 00:00:26]} d5 {[%clk 01:22:06]} {[%emt
00:08:53]} 2. b3 {[%clk 01:29:43]} {[%emt 00:01:20]} Nf6 {[%clk 01:22:08]}
{[%emt 00:00:29]} 3. Bb2 {[%clk 01:30:01]} {[%emt 00:00:11]} Bf5 {[%clk
01:22:36]} {[%emt 00:00:03]} 4. g3 {[%clk 01:28:42]} {[%emt 00:01:48]} e6
{[%clk 01:16:13]} {[%emt 00:06:54]} 5. Bg2 {[%clk 01:24:04]} {[%emt 00:05:07]}
c5 {[%clk 01:14:57]} {[%emt 00:01:47]} 6. O-O {[%clk 01:23:58]} {[%emt
00:00:35]} Nc6 {[%clk 01:15:07]} {[%emt 00:00:20]} 7. d3 {[%clk 01:24:20]}
{[%emt 00:00:08]} h6 {[%clk 01:15:33]} {[%emt 00:00:05]} 8. c4 {[%clk
01:24:35]} {[%emt 00:00:14]} Be7 {[%clk 01:15:23]} {[%emt 00:00:40]} 9. Na3
{[%clk 01:23:48]} {[%emt 00:01:17]} O-O {[%clk 01:15:23]} {[%emt 00:00:30]} 10.
Nc2 {[%clk 01:23:51]} {[%emt 00:00:26]} Qd7 {[%clk 01:15:16]} {[%emt 00:00:39]}
11. Ne3 {[%clk 01:22:19]} {[%emt 00:02:01]} Bh7 {[%clk 01:15:15]} {[%emt
00:00:32]} 12. cxd5 {[%clk 01:21:21]} {[%emt 00:01:28]} Nxd5 {[%clk 01:13:53]}
{[%emt 00:01:52]} 13. Nxd5 {[%clk 01:18:23]} {[%emt 00:03:27]} exd5 {[%clk
01:14:18]} {[%emt 00:00:06]} 14. d4 {[%clk 01:18:39]} {[%emt 00:00:13]} Bf6
{[%clk 01:08:18]} {[%emt 00:06:30]} 15. Rc1 {[%clk 01:15:14]} {[%emt 00:03:56]}
cxd4 {[%clk 01:06:49]} {[%emt 00:02:00]} 16. Nxd4 {[%clk 01:14:40]} {[%emt
00:01:03]} Rfe8 {[%clk 01:07:17]} {[%emt 00:00:03]} 17. e3 {[%clk 01:12:06]}
{[%emt 00:03:03]} Nb4 {[%clk 01:05:19]} {[%emt 00:02:29]} 18. Ba1 {[%clk
01:05:38]} {[%emt 00:06:57]} Nxa2 {[%clk 00:55:01]} {[%emt 00:10:48]} 19. Rc5
{[%clk 01:05:09]} {[%emt 00:00:58]} Be4 {[%clk 00:47:47]} {[%emt 00:07:46]} 20.
Bxe4 {[%clk 00:59:39]} {[%emt 00:05:59]} dxe4 {[%clk 00:42:21]} {[%emt
00:05:57]} 21. Qe2 {[%clk 00:41:54]} {[%emt 00:18:15]} Nb4 {[%clk 00:39:08]}
{[%emt 00:03:44]} 22. Nf5 {[%clk 00:29:56]} {[%emt 00:12:27]} Qe6 {[%clk
00:36:48]} {[%emt 00:02:50]} 23. Qg4 {[%clk 00:23:58]} {[%emt 00:06:27]} Bxa1
{[%clk 00:35:32]} {[%emt 00:01:46]} 24. Rxa1 {[%clk 00:24:02]} {[%emt
00:00:27]} Qf6 {[%clk 00:35:56]} {[%emt 00:00:06]} 25. Ra4 {[%clk 00:23:45]}
{[%emt 00:00:46]} Nd3 {[%clk 00:35:59]} {[%emt 00:00:27]} 26. Rd5 {[%clk
00:21:05]} {[%emt 00:03:10]} Kh8 {[%clk 00:24:59]} {[%emt 00:11:31]} 27. Rxe4
{[%clk 00:16:33]} {[%emt 00:05:01]} Ne5 {[%clk 00:23:19]} {[%emt 00:02:10]} 28.
Qf4 {[%clk 00:16:53]} {[%emt 00:00:10]} g5 {[%clk 00:22:38]} {[%emt 00:01:12]}
29. Qxe5 {[%clk 00:17:07]} {[%emt 00:00:15]} Rxe5 {[%clk 00:23:02]} {[%emt
00:00:06]} 30. Rdxe5 {[%clk 00:16:34]} {[%emt 00:01:03]} Rd8 {[%clk 00:22:15]}
{[%emt 00:01:16]} 31. Nd4 {[%clk 00:15:55]} {[%emt 00:01:09]} Rc8 {[%clk
00:18:36]} {[%emt 00:04:09]} 32. Rf5 {[%clk 00:13:34]} {[%emt 00:02:51]} Rc1+
{[%clk 00:17:55]} {[%emt 00:01:11]} 33. Kg2 {[%clk 00:13:56]} {[%emt 00:00:08]}
Qa6 {[%clk 00:18:22]} {[%emt 00:00:03]} 34. Kf3 {[%clk 00:09:38]} {[%emt
00:04:47]} Qg6 {[%clk 00:14:35]} {[%emt 00:04:17]} 35. Re7 {[%clk 00:06:09]}
{[%emt 00:03:59]} g4+ {[%clk 00:13:23]} {[%emt 00:01:42]} 36. Ke4 {[%clk
00:05:35]} {[%emt 00:01:04]} Rc5 {[%clk 00:01:23]} {[%emt 00:12:30]} 37. Rexf7
{[%clk 00:05:50]} {[%emt 00:00:14]} Rxf5 {[%clk 00:00:33]} {[%emt 00:01:20]} 38.
Rxf5 {[%clk 00:06:10]} {[%emt 00:00:10]} Kg7 {[%clk 00:00:36]} {[%emt
00:00:27]} 39. Kf4 {[%clk 00:03:56]} {[%emt 00:02:45]} a6 {[%clk 00:30:09]}
{[%emt 00:00:58]} 1-0

[Event "Tournoi de MI Clichy 92 2022"]
[Site "Clichy, France"]
[Date "2022.02.20"]
[Round "1.5"]
[White "Mekhane, Adam"]
[Black "Decuigniere, Tom"]
[Result "1/2-1/2"]
[TimeControl "1H40 40 moves plus 30 minutes + 30 seconds from move one"]
[WhiteElo "2316"]
[BlackElo "2292"]

1. e4 {[%clk 01:30:59]} {[%emt 02:31:25]} c6 {[%clk 01:30:55]} {[%emt
00:00:06]} 2. d4 {[%clk 01:27:22]} {[%emt 00:04:06]} d5 {[%clk 01:31:15]}
{[%emt 00:00:10]} 3. exd5 {[%clk 01:27:24]} {[%emt 00:00:28]} cxd5 {[%clk
01:31:32]} {[%emt 00:00:13]} 4. Bd3 {[%clk 01:27:12]} {[%emt 00:00:41]} Nc6
{[%clk 01:30:20]} {[%emt 00:01:43]} 5. c3 {[%clk 01:27:21]} {[%emt 00:00:21]}
e6 {[%clk 01:28:25]} {[%emt 00:02:25]} 6. Nf3 {[%clk 01:21:18]} {[%emt
00:06:33]} Bd6 {[%clk 01:27:47]} {[%emt 00:01:08]} 7. O-O {[%clk 01:21:08]}
{[%emt 00:00:40]} Qc7 {[%clk 01:26:23]} {[%emt 00:01:55]} 8. Re1 {[%clk
01:15:25]} {[%emt 00:06:11]} Nge7 {[%clk 01:21:41]} {[%emt 00:05:13]} 9. Nbd2
{[%clk 01:11:36]} {[%emt 00:04:19]} Ng6 {[%clk 01:16:00]} {[%emt 00:06:11]} 10.
Nf1 {[%clk 01:07:55]} {[%emt 00:04:12]} Bd7 {[%clk 01:10:47]} {[%emt 00:05:43]}
11. Ng3 {[%clk 00:56:04]} {[%emt 00:12:20]} O-O-O {[%clk 01:06:12]} {[%emt
00:05:06]} 12. Nh5 {[%clk 00:41:10]} {[%emt 00:15:24]} e5 {[%clk 00:50:05]}
{[%emt 00:16:38]} 13. dxe5 {[%clk 00:37:45]} {[%emt 00:03:55]} Ncxe5 {[%clk
00:48:32]} {[%emt 00:02:03]} 14. Nxe5 {[%clk 00:35:05]} {[%emt 00:03:10]} Bxe5
{[%clk 00:43:59]} {[%emt 00:05:03]} 15. h3 {[%clk 00:34:53]} {[%emt 00:00:42]}
Rhe8 {[%clk 00:41:07]} {[%emt 00:03:22]} 16. Be3 {[%clk 00:33:03]} {[%emt
00:02:20]} Kb8 {[%clk 00:40:33]} {[%emt 00:01:04]} 17. Qd2 {[%clk 00:31:52]}
{[%emt 00:01:41]} Bc6 {[%clk 00:34:26]} {[%emt 00:06:37]} 18. Bd4 {[%clk
00:30:38]} {[%emt 00:01:43]} f6 {[%clk 00:34:11]} {[%emt 00:00:46]} 19. Kh1
{[%clk 00:28:53]} {[%emt 00:02:15]} Nf4 {[%clk 00:31:48]} {[%emt 00:02:54]} 20.
Nxf4 {[%clk 00:27:59]} {[%emt 00:01:24]} Bxf4 {[%clk 00:32:13]} {[%emt
00:00:05]} 21. Qc2 {[%clk 00:28:15]} {[%emt 00:00:13]} Be5 {[%clk 00:27:29]}
{[%emt 00:05:14]} 22. Bxh7 {[%clk 00:23:47]} {[%emt 00:04:57]} Bxd4 {[%clk
00:27:39]} {[%emt 00:00:21]} 23. cxd4 {[%clk 00:22:49]} {[%emt 00:01:28]} Qf4
{[%clk 00:27:15]} {[%emt 00:00:54]} 24. Rxe8 {[%clk 00:20:08]} {[%emt
00:03:11]} Rxe8 {[%clk 00:27:12]} {[%emt 00:00:32]} 25. Rd1 {[%clk 00:19:59]}
{[%emt 00:00:40]} Bd7 {[%clk 00:23:33]} {[%emt 00:04:10]} 26. Bg6 {[%clk
00:16:12]} {[%emt 00:04:17]} Rh8 {[%clk 00:21:23]} {[%emt 00:02:39]} 27. Qd2
{[%clk 00:15:39]} {[%emt 00:01:03]} Rxh3+ {[%clk 00:19:12]} {[%emt 00:02:41]}
28. gxh3 {[%clk 00:11:38]} {[%emt 00:04:31]} Qf3+ {[%clk 00:19:38]} {[%emt
00:00:05]} 29. Kh2 {[%clk 00:11:53]} {[%emt 00:00:14]} Qxh3+ {[%clk 00:19:39]}
{[%emt 00:00:30]} 30. Kg1 {[%clk 00:12:21]} {[%emt 00:00:01]} Qg4+ {[%clk
00:19:46]} {[%emt 00:00:23]} 31. Kh2 {[%clk 00:10:45]} {[%emt 00:02:05]}
1/2-1/2

[Event "Tournoi de MI Clichy 92 2022"]
[Site "Clichy, France"]
[Date "2022.02.20"]
[Round "1.2"]
[White "Valles Moreno, Ivan"]
[Black "Droin, Augustin"]
[Result "0-1"]
[TimeControl "1H40 40 moves plus 30 minutes + 30 seconds from move one"]
[WhiteElo "2393"]
[BlackElo "2365"]

1. Nf3 {[%clk 01:30:44]} {[%emt 00:00:14]} b6 {[%clk 01:30:56]} {[%emt
00:00:06]} 2. e4 {[%clk 01:26:28]} {[%emt 00:04:44]} Bb7 {[%clk 01:31:22]}
{[%emt 00:00:05]} 3. Nc3 {[%clk 01:26:32]} {[%emt 00:00:25]} e6 {[%clk
01:31:46]} {[%emt 00:00:07]} 4. d4 {[%clk 01:26:16]} {[%emt 00:00:45]} Bb4
{[%clk 01:31:31]} {[%emt 00:00:46]} 5. Bd3 {[%clk 01:26:12]} {[%emt 00:00:31]}
Nf6 {[%clk 01:31:56]} {[%emt 00:00:08]} 6. Nd2 {[%clk 01:23:47]} {[%emt
00:02:54]} c5 {[%clk 01:27:38]} {[%emt 00:04:49]} 7. e5 {[%clk 00:50:00]}
{[%emt 00:34:16]} cxd4 {[%clk 01:20:06]} {[%emt 00:08:03]} 8. Nb5 {[%clk
00:48:20]} {[%emt 00:02:10]} Nd5 {[%clk 00:52:51]} {[%emt 00:27:47]} 9. O-O
{[%clk 00:38:42]} {[%emt 00:10:06]} d6 {[%clk 00:46:35]} {[%emt 00:06:47]} 10.
Qg4 {[%clk 00:21:23]} {[%emt 00:17:48]} O-O {[%clk 00:35:29]} {[%emt 00:11:38]}
11. Nf3 {[%clk 00:21:12]} {[%emt 00:00:40]} dxe5 {[%clk 00:31:37]} {[%emt
00:04:22]} 12. Bh6 {[%clk 00:17:30]} {[%emt 00:04:11]} g6 {[%clk 00:31:49]}
{[%emt 00:00:19]} 13. Bxf8 {[%clk 00:16:50]} {[%emt 00:01:09]} Bxf8 {[%clk
00:32:08]} {[%emt 00:00:12]} 14. Nxe5 {[%clk 00:16:53]} {[%emt 00:00:26]} Bg7
{[%clk 00:31:22]} {[%emt 00:01:17]} 15. Rfe1 {[%clk 00:12:33]} {[%emt
00:04:49]} Bxe5 {[%clk 00:25:59]} {[%emt 00:05:53]} 16. Rxe5 {[%clk 00:12:58]}
{[%emt 00:00:05]} Nc6 {[%clk 00:26:11]} {[%emt 00:00:19]} 17. Ree1 {[%clk
00:13:15]} {[%emt 00:00:13]} Ndb4 {[%clk 00:25:03]} {[%emt 00:01:39]} 18. Rad1
{[%clk 00:11:11]} {[%emt 00:02:32]} a6 {[%clk 00:21:36]} {[%emt 00:03:58]} 19.
Na3 {[%clk 00:10:27]} {[%emt 00:01:14]} Nxd3 {[%clk 00:19:46]} {[%emt
00:02:21]} 20. Rxd3 {[%clk 00:08:55]} {[%emt 00:02:01]} Qd5 {[%clk 00:19:57]}
{[%emt 00:00:19]} 21. c4 {[%clk 00:05:31]} {[%emt 00:03:53]} Qa5 {[%clk
00:18:36]} {[%emt 00:01:51]} 22. Qd1 {[%clk 00:05:53]} {[%emt 00:00:08]} Rd8
{[%clk 00:17:56]} {[%emt 00:01:10]} 23. Qd2 {[%clk 00:05:35]} {[%emt 00:00:48]}
Qc5 {[%clk 00:17:47]} {[%emt 00:00:39]} 24. Qh6 {[%clk 00:04:16]} {[%emt
00:01:48]} Qb4 {[%clk 00:13:12]} {[%emt 00:05:06]} 25. Kf1 {[%clk 00:02:54]}
{[%emt 00:01:51]} Ne7 {[%clk 00:12:21]} {[%emt 00:01:21]} 26. Qd2 {[%clk
00:03:16]} {[%emt 00:00:07]} Qd6 {[%clk 00:12:34]} {[%emt 00:00:18]} 27. Qg5
{[%clk 00:02:46]} {[%emt 00:01:00]} Nf5 {[%clk 00:11:18]} {[%emt 00:01:46]} 28.
g4 {[%clk 00:02:38]} {[%emt 00:00:37]} Ne7 {[%clk 00:10:57]} {[%emt 00:00:52]}
29. Qh4 {[%clk 00:02:05]} {[%emt 00:01:02]} Kf8 {[%clk 00:06:36]} {[%emt
00:04:52]} 30. Nc2 {[%clk 00:02:03]} {[%emt 00:00:32]} Qc6 {[%clk 00:06:18]}
{[%emt 00:00:48]} 31. b3 {[%clk 00:01:04]} {[%emt 00:01:29]} Qg2+ {[%clk
00:03:59]} {[%emt 00:02:49]} 32. Ke2 {[%clk 00:01:28]} {[%emt 00:00:05]} Qe4+
{[%clk 00:04:12]} {[%emt 00:00:17]} 33. Ne3 {[%clk 00:00:56]} {[%emt 00:01:02]}
Qf3+ {[%clk 00:04:12]} {[%emt 00:00:30]} 34. Kd2 {[%clk 00:01:00]} {[%emt
00:00:26]} Be4 {[%clk 00:04:06]} {[%emt 00:00:36]} 35. Qxe7+ {[%clk 00:00:32]}
{[%emt 00:00:58]} Kxe7 {[%clk 00:04:21]} {[%emt 00:00:15]} 36. Nf5+ {[%clk
00:00:45]} {[%emt 00:00:17]} gxf5 {[%clk 00:04:35]} {[%emt 00:00:17]} 37. Rxf3
{[%clk 00:01:11]} {[%emt 00:00:04]} Bxf3 {[%clk 00:05:02]} {[%emt 00:00:03]} 38.
gxf5 {[%clk 00:01:34]} {[%emt 00:00:06]} Kf6 {[%clk 00:05:10]} {[%emt
00:00:22]} 39. fxe6 {[%clk 00:01:32]} {[%emt 00:00:32]} fxe6 {[%clk 00:05:34]}
{[%emt 00:00:06]} 40. b4 {[%clk 00:00:31]} {[%emt 00:01:30]} e5 {[%clk
00:05:56]} {[%emt 00:00:09]} 41. Rb1 {[%clk 00:00:55]} {[%emt 00:00:05]} Rc8
{[%clk 00:06:07]} {[%emt 00:00:19]} 42. Kd3 {[%clk 00:29:58]} {[%emt 00:01:27]}
Kf5 {[%clk 00:34:16]} {[%emt 00:02:22]} 43. Re1 {[%clk 00:29:07]} {[%emt
00:01:20]} Rd8 {[%clk 00:34:21]} {[%emt 00:00:26]} 44. Rc1 {[%clk 00:28:41]}
{[%emt 00:00:55]} e4+ {[%clk 00:34:27]} {[%emt 00:00:25]} 45. Kd2 {[%clk
00:29:04]} {[%emt 00:00:07]} Kf4 {[%clk 00:34:07]} {[%emt 00:00:51]} 46. Ke1
{[%emt 00:00:54]} Ke5 {[%emt 00:00:01]} 0-1

[Event "Tournoi de MI Clichy 92 2022"]
[Site "Clichy, France"]
[Date "2022.02.20"]
[Round "1.1"]
[White "Benmesbah, Natacha"]
[Black "Petrov, Martin"]
[Result "0-1"]
[TimeControl "1H40 40 moves plus 30 minutes + 30 seconds from move one"]
[WhiteElo "2221"]
[BlackElo "2547"]

1. e4 {[%clk 01:30:57]} c5 {[%clk 01:30:32]} {[%emt 00:00:28]} 2. Nf3 {[%clk
01:31:22]} {[%emt 00:00:05]} e6 {[%clk 01:30:48]} {[%emt 00:00:13]} 3. d3
{[%clk 01:28:09]} {[%emt 00:03:45]} Nc6 {[%clk 01:30:53]} {[%emt 00:00:24]} 4.
g3 {[%clk 01:28:31]} {[%emt 00:00:08]} d5 {[%clk 01:26:53]} {[%emt 00:04:29]} 5.
Qe2 {[%clk 01:28:56]} {[%emt 00:00:06]} Be7 {[%clk 01:27:02]} {[%emt 00:00:20]}
6. Bg2 {[%clk 01:20:19]} {[%emt 00:09:08]} Nf6 {[%clk 01:27:14]} {[%emt
00:00:17]} 7. O-O {[%clk 01:20:44]} {[%emt 00:00:06]} O-O {[%clk 01:15:57]}
{[%emt 00:11:46]} 8. e5 {[%clk 01:20:25]} {[%emt 00:00:50]} Nd7 {[%clk
01:16:19]} {[%emt 00:00:07]} 9. c4 {[%clk 01:20:50]} {[%emt 00:00:05]} b5
{[%clk 01:14:20]} {[%emt 00:02:29]} 10. cxb5 {[%clk 00:51:55]} {[%emt
00:29:26]} Na5 {[%clk 01:14:42]} {[%emt 00:00:05]} 11. Nc3 {[%clk 00:43:05]}
{[%emt 00:09:22]} a6 {[%clk 01:12:44]} {[%emt 00:02:28]} 12. bxa6 {[%clk
00:41:46]} {[%emt 00:01:49]} Bxa6 {[%clk 01:10:56]} {[%emt 00:02:17]} 13. h4
{[%clk 00:40:14]} {[%emt 00:02:03]} Nc6 {[%clk 01:07:32]} {[%emt 00:03:53]} 14.
Rd1 {[%clk 00:38:10]} {[%emt 00:02:34]} Rb8 {[%clk 00:44:56]} {[%emt 00:23:07]}
15. Bf4 {[%clk 00:36:25]} {[%emt 00:02:14]} Rb4 {[%clk 00:42:57]} {[%emt
00:02:28]} 16. Rd2 {[%clk 00:30:15]} {[%emt 00:06:41]} h6 {[%clk 00:31:35]}
{[%emt 00:11:51]} 17. h5 {[%clk 00:27:20]} {[%emt 00:03:25]} Bg5 {[%clk
00:30:00]} {[%emt 00:02:06]} 18. Bxg5 {[%clk 00:23:57]} {[%emt 00:03:54]} hxg5
{[%clk 00:28:25]} {[%emt 00:02:03]} 19. a3 {[%clk 00:24:03]} {[%emt 00:00:24]}
Nd4 {[%clk 00:09:27]} {[%emt 00:19:28]} 20. Nxd4 {[%clk 00:18:25]} {[%emt
00:06:08]} Rxd4 {[%clk 00:09:52]} {[%emt 00:00:05]} 21. Qe3 {[%clk 00:18:24]}
{[%emt 00:00:31]} f5 {[%clk 00:08:32]} {[%emt 00:01:50]} 22. exf6 {[%clk
00:17:58]} {[%emt 00:00:56]} Qxf6 {[%clk 00:08:58]} {[%emt 00:00:04]} 23. Re1
{[%clk 00:17:35]} {[%emt 00:00:53]} Bxd3 {[%clk 00:04:16]} {[%emt 00:05:12]} 24.
Qxe6+ {[%clk 00:14:18]} {[%emt 00:03:47]} Qxe6 {[%clk 00:04:43]} {[%emt
00:00:04]} 25. Rxe6 {[%clk 00:14:45]} {[%emt 00:00:03]} Bf5 {[%clk 00:05:06]}
{[%emt 00:00:07]} 26. Ree2 {[%clk 00:13:49]} {[%emt 00:01:26]} Rxd2 {[%clk
00:05:29]} {[%emt 00:00:07]} 27. Rxd2 {[%clk 00:14:13]} {[%emt 00:00:07]} d4
{[%clk 00:05:57]} {[%emt 00:00:02]} 28. Nd5 {[%clk 00:10:23]} {[%emt 00:04:20]}
Re8 {[%clk 00:04:49]} {[%emt 00:01:37]} 29. b4 {[%clk 00:07:45]} {[%emt
00:03:08]} Re1+ {[%clk 00:05:14]} {[%emt 00:00:05]} 30. Kh2 {[%clk 00:08:10]}
{[%emt 00:00:05]} d3 {[%clk 00:05:20]} {[%emt 00:00:25]} 31. Ne3 {[%clk
00:05:55]} {[%emt 00:02:45]} Bh7 {[%clk 00:05:44]} {[%emt 00:00:05]} 32. Bd5+
{[%clk 00:01:49]} {[%emt 00:04:37]} Kf8 {[%clk 00:06:08]} {[%emt 00:00:06]} 33.
b5 {[%clk 00:01:33]} {[%emt 00:00:46]} Nb6 {[%clk 00:05:50]} {[%emt 00:00:48]}
34. Ng2 {[%clk 00:00:33]} {[%emt 00:01:30]} Rc1 {[%clk 00:03:51]} {[%emt
00:02:29]} 35. Bf3 {[%clk 00:00:53]} {[%emt 00:00:10]} c4 {[%clk 00:04:14]}
{[%emt 00:00:07]} 36. Rd1 {[%clk 00:01:11]} {[%emt 00:00:11]} Rxd1 {[%clk
00:04:24]} {[%emt 00:00:19]} 37. Bxd1 {[%clk 00:01:39]} {[%emt 00:00:03]} c3
{[%clk 00:04:48]} {[%emt 00:00:06]} 38. Ne1 {[%clk 00:00:40]} {[%emt 00:01:28]}
c2 {[%clk 00:04:52]} {[%emt 00:00:26]} 39. Bxc2 {[%clk 00:00:47]} {[%emt
00:00:23]} dxc2 {[%clk 00:05:16]} {[%emt 00:00:06]} 40. Nxc2 {[%clk 00:01:15]}
{[%emt 00:00:03]} Bxc2 {[%clk 00:05:37]} {[%emt 00:00:08]} 0-1

[ePGN "0.1;DGT LiveChess/2.2.5"]